[Event "*** SCC Grand Prix: Titled Tuesday Blitz"]
[Site "Chess.com"]
[Date "2020.08.25"]
[Round "6"]
[White "Fandorine"]
[Black "Mazetovic"]
[Result "1-0"]
[WhiteElo "2917"]
[BlackElo "2666"]
[TimeControl "180+1"]
[EndTime "11:08:21 PDT"]
[Termination "Fandorine won by resignation"]

1. d4 {[%clk 0:03:00.9]} 1... Nf6 {[%clk 0:02:59.6]} 2. c4 {[%clk 0:03:00.6]}
2... g6 {[%clk 0:02:59.6]} 3. Nc3 {[%clk 0:03:01]} 3... Bg7 {[%clk 0:02:59.7]}
4. e4 {[%clk 0:03:01.5]} 4... d6 {[%clk 0:02:59.9]} 5. Nf3 {[%clk 0:03:01.1]}
5... O-O {[%clk 0:02:58.7]} 6. Be2 {[%clk 0:03:01.6]} 6... Na6 {[%clk
0:02:58.6]} 7. O-O {[%clk 0:03:01.6]} 7... e5 {[%clk 0:02:58.3]} 8. Be3 {[%clk
0:03:01.8]} 8... c6 {[%clk 0:02:58.2]} 9. d5 {[%clk 0:02:53.3]} 9... Ng4 {[%clk
0:02:57.8]} 10. Bg5 {[%clk 0:02:53.8]} 10... f6 {[%clk 0:02:57.8]} 11. Bd2
{[%clk 0:02:54.4]} 11... c5 {[%clk 0:02:57.6]} 12. Qc1 {[%clk 0:02:54.9]} 12...
f5 {[%clk 0:02:54.3]} 13. exf5 {[%clk 0:02:53.1]} 13... gxf5 {[%clk 0:02:54.2]}
14. g3 {[%clk 0:02:53.6]} 14... Nc7 {[%clk 0:02:38.4]} 15. Nh4 {[%clk 0:02:52]}
15... Bd7 {[%clk 0:02:13.2]} 16. Bxg4 {[%clk 0:02:35.6]} 16... fxg4 {[%clk
0:02:12.7]} 17. Ne4 {[%clk 0:02:36.3]} 17... Ne8 {[%clk 0:02:07.5]} 18. Bg5
{[%clk 0:02:27.9]} 18... Qc7 {[%clk 0:02:02.2]} 19. Bh6 {[%clk 0:02:17.5]} 19...
Bf5 {[%clk 0:01:54.4]} 20. Bxg7 {[%clk 0:02:06]} 20... Nxg7 {[%clk 0:01:54]} 21.
Nxf5 {[%clk 0:02:00.3]} 21... Nxf5 {[%clk 0:01:41.5]} 22. Qg5+ {[%clk
0:01:57.6]} 22... Qg7 {[%clk 0:01:40.7]} 23. Kg2 {[%clk 0:01:44.4]} 23... h6
{[%clk 0:01:11]} 24. Qxg7+ {[%clk 0:01:41.8]} 24... Kxg7 {[%clk 0:01:10.8]} 25.
h3 {[%clk 0:01:41.9]} 25... h5 {[%clk 0:00:31.4]} 26. Rh1 {[%clk 0:01:41.1]}
26... Rh8 {[%clk 0:00:31]} 27. Rh2 {[%clk 0:01:37.4]} 27... Rh6 {[%clk
0:00:31.1]} 28. Rah1 {[%clk 0:01:31.7]} 28... Rah8 {[%clk 0:00:31]} 29. b3
{[%clk 0:01:31.5]} 29... b6 {[%clk 0:00:22.2]} 30. hxg4 {[%clk 0:01:21.3]} 30...
hxg4 {[%clk 0:00:22]} 31. Rxh6 {[%clk 0:01:21.5]} 31... Rxh6 {[%clk 0:00:22.2]}
32. Rxh6 {[%clk 0:01:22.1]} 32... Kxh6 {[%clk 0:00:22.9]} 33. f3 {[%clk
0:01:22.6]} 33... gxf3+ {[%clk 0:00:16.7]} 34. Kxf3 {[%clk 0:01:23.5]} 34... Kg6
{[%clk 0:00:17.2]} 35. g4 {[%clk 0:01:23.5]} 35... Nd4+ {[%clk 0:00:17.3]} 36.
Ke3 {[%clk 0:01:19.3]} 36... Nc2+ {[%clk 0:00:16.4]} 37. Kd2 {[%clk 0:01:19]}
37... Nb4 {[%clk 0:00:16.6]} 38. a3 {[%clk 0:01:15.8]} 38... Na6 {[%clk
0:00:16]} 39. Nxd6 {[%clk 0:01:16.4]} 39... Kg5 {[%clk 0:00:16.5]} 40. Ke3
{[%clk 0:01:01.8]} 40... Nb8 {[%clk 0:00:14.1]} 41. Ke4 {[%clk 0:00:54]} 41...
Nd7 {[%clk 0:00:13.4]} 42. Nf7+ {[%clk 0:00:54.3]} 42... Kf6 {[%clk 0:00:12.6]}
43. Nd8 {[%clk 0:00:52.1]} 43... Kg5 {[%clk 0:00:12.2]} 44. Nc6 {[%clk
0:00:48.9]} 44... Nf6+ {[%clk 0:00:09]} 45. Kxe5 {[%clk 0:00:48.9]} 45... Nxg4+
{[%clk 0:00:09.5]} 46. Kd6 {[%clk 0:00:49.2]} 46... Kf6 {[%clk 0:00:08.3]} 47.
Nxa7 {[%clk 0:00:48.6]} 47... Nf2 {[%clk 0:00:09.1]} 48. Nc8 {[%clk 0:00:47.8]}
48... Ne4+ {[%clk 0:00:09.3]} 49. Kc6 {[%clk 0:00:48.1]} 49... Ke5 {[%clk
0:00:09.3]} 50. Nxb6 {[%clk 0:00:46]} 1-0

[Event "*** SCC Grand Prix: Titled Tuesday Blitz"]
[Site "Chess.com"]
[Date "2020.08.25"]
[Round "6"]
[White "gmcorrales"]
[Black "GukeshDommaraju"]
[Result "1-0"]
[WhiteElo "2912"]
[BlackElo "2709"]
[TimeControl "180+1"]
[EndTime "11:08:22 PDT"]
[Termination "gmcorrales won by resignation"]

1. e4 {[%clk 0:03:00.9]} 1... c5 {[%clk 0:02:59.5]} 2. Nf3 {[%clk 0:03:00.5]}
2... d6 {[%clk 0:02:59.9]} 3. d4 {[%clk 0:02:59.5]} 3... cxd4 {[%clk 0:03:00.8]}
4. Nxd4 {[%clk 0:02:59.9]} 4... Nf6 {[%clk 0:03:01.2]} 5. Nc3 {[%clk 0:02:59.9]}
5... a6 {[%clk 0:03:01.5]} 6. Be3 {[%clk 0:03:00.4]} 6... e6 {[%clk 0:02:55.3]}
7. f3 {[%clk 0:03:00.1]} 7... Be7 {[%clk 0:02:51.9]} 8. Qd2 {[%clk 0:02:57.8]}
8... b5 {[%clk 0:02:50.6]} 9. g4 {[%clk 0:02:57.9]} 9... Bb7 {[%clk 0:02:47.2]}
10. g5 {[%clk 0:02:58.1]} 10... Nfd7 {[%clk 0:02:47]} 11. O-O-O {[%clk
0:02:57.9]} 11... Nb6 {[%clk 0:02:42.2]} 12. a3 {[%clk 0:02:24.7]} 12... N8d7
{[%clk 0:02:41.3]} 13. h4 {[%clk 0:02:24.1]} 13... Rc8 {[%clk 0:02:39.2]} 14. h5
{[%clk 0:02:21.1]} 14... Ne5 {[%clk 0:02:34.1]} 15. Rg1 {[%clk 0:02:08.8]} 15...
Nbc4 {[%clk 0:01:48.7]} 16. Bxc4 {[%clk 0:02:08.5]} 16... Nxc4 {[%clk
0:01:49.6]} 17. Qd3 {[%clk 0:02:08.7]} 17... g6 {[%clk 0:01:29.5]} 18. Nb3
{[%clk 0:02:05]} 18... Qc7 {[%clk 0:01:15.1]} 19. Bd4 {[%clk 0:02:03.3]} 19...
e5 {[%clk 0:01:15]} 20. Be3 {[%clk 0:01:10.2]} 20... Nxa3 {[%clk 0:01:10]} 21.
hxg6 {[%clk 0:00:58.5]} 21... hxg6 {[%clk 0:01:07.8]} 22. Rh1 {[%clk 0:00:58.2]}
22... Rf8 {[%clk 0:00:40.9]} 23. Rh2 {[%clk 0:00:20.8]} 23... Nc4 {[%clk
0:00:27.5]} 24. Kb1 {[%clk 0:00:20.8]} 24... Bc6 {[%clk 0:00:20.8]} 25. Bc1
{[%clk 0:00:20.7]} 25... Qb7 {[%clk 0:00:20.8]} 26. Nd5 {[%clk 0:00:20.5]} 26...
Bxd5 {[%clk 0:00:20.6]} 27. exd5 {[%clk 0:00:21.4]} 27... a5 {[%clk 0:00:19.5]}
28. Nd2 {[%clk 0:00:20.8]} 28... a4 {[%clk 0:00:18.5]} 29. Ne4 {[%clk
0:00:20.8]} 29... b4 {[%clk 0:00:15.8]} 30. b3 {[%clk 0:00:14.4]} 30... Nb6
{[%clk 0:00:14.3]} 31. Qb5+ {[%clk 0:00:13.9]} 31... Kd8 {[%clk 0:00:13.3]} 32.
bxa4 {[%clk 0:00:13.5]} 32... Qa7 {[%clk 0:00:08.3]} 33. Be3 {[%clk 0:00:13.4]}
33... Rb8 {[%clk 0:00:05.1]} 34. a5 {[%clk 0:00:14]} 34... Qc7 {[%clk
0:00:04.5]} 35. Bxb6 {[%clk 0:00:13.8]} 1-0

[Event "*** SCC Grand Prix: Titled Tuesday Blitz"]
[Site "Chess.com"]
[Date "2020.08.25"]
[Round "6"]
[White "r31415"]
[Black "lifeissofun"]
[Result "0-1"]
[WhiteElo "2441"]
[BlackElo "2271"]
[TimeControl "180+1"]
[EndTime "11:08:22 PDT"]
[Termination "lifeissofun won on time"]

1. c4 {[%clk 0:02:59.7]} 1... Nf6 {[%clk 0:02:58.6]} 2. Nc3 {[%clk 0:02:58.4]}
2... e6 {[%clk 0:02:59.1]} 3. Nf3 {[%clk 0:02:56.7]} 3... d5 {[%clk 0:02:59.5]}
4. d4 {[%clk 0:02:53.9]} 4... dxc4 {[%clk 0:02:58.1]} 5. e4 {[%clk 0:02:52.7]}
5... Bb4 {[%clk 0:02:57.4]} 6. Bg5 {[%clk 0:02:46.9]} 6... h6 {[%clk 0:02:53.9]}
7. Bxf6 {[%clk 0:02:36]} 7... Qxf6 {[%clk 0:02:54.8]} 8. Bxc4 {[%clk 0:02:29.4]}
8... O-O {[%clk 0:02:49.9]} 9. O-O {[%clk 0:02:22.9]} 9... c5 {[%clk 0:02:47.9]}
10. e5 {[%clk 0:02:08.3]} 10... Qe7 {[%clk 0:02:43.9]} 11. d5 {[%clk 0:01:47]}
11... Bxc3 {[%clk 0:02:31.9]} 12. bxc3 {[%clk 0:01:46.6]} 12... exd5 {[%clk
0:02:32.8]} 13. Bxd5 {[%clk 0:01:37.4]} 13... Be6 {[%clk 0:02:31.9]} 14. Be4
{[%clk 0:01:17.5]} 14... Rd8 {[%clk 0:02:22.4]} 15. Qa4 {[%clk 0:01:17.1]} 15...
Na6 {[%clk 0:02:08.9]} 16. Rab1 {[%clk 0:01:12.7]} 16... Bd5 {[%clk 0:02:06.2]}
17. Rfd1 {[%clk 0:01:05.1]} 17... Bxe4 {[%clk 0:02:03.2]} 18. Qxe4 {[%clk
0:01:06]} 18... Rxd1+ {[%clk 0:01:55.6]} 19. Rxd1 {[%clk 0:01:05.8]} 19... Rd8
{[%clk 0:01:56.5]} 20. Rd5 {[%clk 0:01:06.1]} 20... Nc7 {[%clk 0:01:43.6]} 21.
Rd3 {[%clk 0:00:58.7]} 21... Ne6 {[%clk 0:01:28.5]} 22. g3 {[%clk 0:00:50.9]}
22... b5 {[%clk 0:01:23.4]} 23. Kg2 {[%clk 0:00:42.3]} 23... a5 {[%clk
0:01:14.9]} 24. Nh4 {[%clk 0:00:41.8]} 24... Rxd3 {[%clk 0:01:11.4]} 25. Qxd3
{[%clk 0:00:41.3]} 25... Qb7+ {[%clk 0:01:11.6]} 26. f3 {[%clk 0:00:39.3]} 26...
c4 {[%clk 0:01:11.6]} 27. Qd2 {[%clk 0:00:21.4]} 27... b4 {[%clk 0:01:10]} 28.
Nf5 {[%clk 0:00:20.5]} 28... Qb5 {[%clk 0:01:01.4]} 29. f4 {[%clk 0:00:15.6]}
29... Qc6+ {[%clk 0:00:57.4]} 30. Kf2 {[%clk 0:00:14.9]} 30... Qe4 {[%clk
0:00:56.9]} 31. Nd6 {[%clk 0:00:13.1]} 31... Qc6 {[%clk 0:00:41]} 32. cxb4
{[%clk 0:00:12.2]} 32... c3 {[%clk 0:00:41.3]} 33. Qc2 {[%clk 0:00:09.1]} 33...
axb4 {[%clk 0:00:41.6]} 34. Nf5 {[%clk 0:00:09.1]} 34... Qc5+ {[%clk 0:00:31.4]}
35. Ne3 {[%clk 0:00:02.3]} 35... Nd4 {[%clk 0:00:31.2]} 36. Qa4 {[%clk 0:00:01]}
36... Nf5 {[%clk 0:00:22.5]} 0-1

[Event "*** SCC Grand Prix: Titled Tuesday Blitz"]
[Site "Chess.com"]
[Date "2020.08.25"]
[Round "6"]
[White "Kobalia"]
[Black "Infernal_XaM"]
[Result "0-1"]
[WhiteElo "2774"]
[BlackElo "2919"]
[TimeControl "180+1"]
[EndTime "11:08:24 PDT"]
[Termination "Infernal_XaM won on time"]

1. e4 {[%clk 0:03:00.9]} 1... d5 {[%clk 0:02:59.8]} 2. exd5 {[%clk 0:03:00.6]}
2... Qxd5 {[%clk 0:03:00.4]} 3. Nc3 {[%clk 0:03:00.7]} 3... Qd6 {[%clk 0:03:01]}
4. d4 {[%clk 0:03:00.6]} 4... Nf6 {[%clk 0:03:01.4]} 5. Nf3 {[%clk 0:03:00.5]}
5... g6 {[%clk 0:03:01.6]} 6. Nb5 {[%clk 0:02:57.2]} 6... Qd8 {[%clk 0:02:58.9]}
7. Bf4 {[%clk 0:02:56.1]} 7... Na6 {[%clk 0:02:53.1]} 8. c4 {[%clk 0:02:53.7]}
8... Bg7 {[%clk 0:02:52.1]} 9. Be2 {[%clk 0:02:50.1]} 9... O-O {[%clk
0:02:51.3]} 10. O-O {[%clk 0:02:50.1]} 10... c5 {[%clk 0:02:34.2]} 11. dxc5
{[%clk 0:02:40.9]} 11... Ne4 {[%clk 0:02:28.8]} 12. Qc2 {[%clk 0:02:30.1]} 12...
Nexc5 {[%clk 0:02:20.1]} 13. Rad1 {[%clk 0:02:23.6]} 13... Bf5 {[%clk 0:02:15]}
14. Rxd8 {[%clk 0:02:12.1]} 14... Bxc2 {[%clk 0:02:14.4]} 15. Rxa8 {[%clk
0:02:11.1]} 15... Rxa8 {[%clk 0:02:14.1]} 16. b3 {[%clk 0:01:36.2]} 16... Nb4
{[%clk 0:02:14]} 17. Be3 {[%clk 0:01:30.8]} 17... b6 {[%clk 0:02:09]} 18. a3
{[%clk 0:01:22.6]} 18... Nc6 {[%clk 0:02:02.3]} 19. b4 {[%clk 0:01:21]} 19...
Na4 {[%clk 0:01:52.9]} 20. Rc1 {[%clk 0:01:04.9]} 20... Be4 {[%clk 0:01:48.9]}
21. Nd2 {[%clk 0:00:48.2]} 21... Bf5 {[%clk 0:01:49]} 22. Bf3 {[%clk 0:00:47.6]}
22... Rc8 {[%clk 0:01:49.1]} 23. Bxc6 {[%clk 0:00:46.6]} 23... Rxc6 {[%clk
0:01:49.2]} 24. Nxa7 {[%clk 0:00:45.8]} 24... Rc7 {[%clk 0:01:46.6]} 25. Nb5
{[%clk 0:00:45]} 25... Rc8 {[%clk 0:01:46.6]} 26. Nd4 {[%clk 0:00:41.1]} 26...
Bd3 {[%clk 0:01:42.2]} 27. h3 {[%clk 0:00:37.3]} 27... f5 {[%clk 0:01:41.7]} 28.
c5 {[%clk 0:00:31.6]} 28... f4 {[%clk 0:01:28]} 29. Bxf4 {[%clk 0:00:13.1]}
29... Bxd4 {[%clk 0:01:27.3]} 30. Nf3 {[%clk 0:00:11]} 30... Bb2 {[%clk
0:01:23.2]} 31. Re1 {[%clk 0:00:10.5]} 31... bxc5 {[%clk 0:01:21.6]} 32. bxc5
{[%clk 0:00:10.1]} 32... Bf6 {[%clk 0:01:18.2]} 33. Be5 {[%clk 0:00:07]} 33...
Rxc5 {[%clk 0:01:16.1]} 34. Bxf6 {[%clk 0:00:07.1]} 34... exf6 {[%clk
0:01:16.3]} 35. Re7 {[%clk 0:00:07.2]} 35... Rd5 {[%clk 0:01:08.8]} 36. Ra7
{[%clk 0:00:05.8]} 36... Bb5 {[%clk 0:01:06.2]} 37. Ra5 {[%clk 0:00:04.7]} 37...
Bc6 {[%clk 0:01:04.7]} 38. Ra6 {[%clk 0:00:04.2]} 38... Rd6 {[%clk 0:00:55.3]}
39. Nd4 {[%clk 0:00:03.7]} 39... Rxd4 {[%clk 0:00:54.8]} 40. Rxc6 {[%clk
0:00:04.4]} 40... f5 {[%clk 0:00:53.1]} 41. Rc7 {[%clk 0:00:04.6]} 41... Rd3
{[%clk 0:00:50.9]} 42. Ra7 {[%clk 0:00:04.1]} 42... Rxa3 {[%clk 0:00:50]} 43.
Kh2 {[%clk 0:00:03.8]} 43... Ra2 {[%clk 0:00:50.2]} 44. Ra8+ {[%clk 0:00:03.7]}
44... Kg7 {[%clk 0:00:50.1]} 45. f4 {[%clk 0:00:02.4]} 45... Nc3 {[%clk
0:00:49.2]} 46. Rc8 {[%clk 0:00:02.5]} 46... Nd5 {[%clk 0:00:48.1]} 47. Rd8
{[%clk 0:00:02.1]} 47... Nxf4 {[%clk 0:00:47.3]} 0-1

[Event "*** SCC Grand Prix: Titled Tuesday Blitz"]
[Site "Chess.com"]
[Date "2020.08.25"]
[Round "6"]
[White "azikom"]
[Black "Harsha_Bharathakoti"]
[Result "1-0"]
[WhiteElo "2640"]
[BlackElo "2810"]
[TimeControl "180+1"]
[EndTime "11:08:24 PDT"]
[Termination "azikom won by resignation"]

1. d4 {[%clk 0:02:59.6]} 1... d5 {[%clk 0:03:00.2]} 2. Nf3 {[%clk 0:02:59.1]}
2... Nf6 {[%clk 0:02:59.9]} 3. Bf4 {[%clk 0:02:59.5]} 3... e6 {[%clk 0:02:59.9]}
4. e3 {[%clk 0:03:00.2]} 4... Bd6 {[%clk 0:03:00.5]} 5. Bg3 {[%clk 0:02:59.5]}
5... O-O {[%clk 0:03:00.6]} 6. c4 {[%clk 0:02:59.5]} 6... c5 {[%clk 0:02:59.7]}
7. cxd5 {[%clk 0:02:58]} 7... Nxd5 {[%clk 0:02:56]} 8. Bxd6 {[%clk 0:02:57.2]}
8... Qxd6 {[%clk 0:02:56.9]} 9. dxc5 {[%clk 0:02:56.1]} 9... Qxc5 {[%clk
0:02:57.8]} 10. Nbd2 {[%clk 0:02:56.6]} 10... Nc6 {[%clk 0:02:57.2]} 11. a3
{[%clk 0:02:56.3]} 11... Rd8 {[%clk 0:02:54.3]} 12. Rc1 {[%clk 0:02:55.9]} 12...
Qe7 {[%clk 0:02:39.9]} 13. Qc2 {[%clk 0:02:54.7]} 13... Bd7 {[%clk 0:02:16.6]}
14. Qb1 {[%clk 0:02:54]} 14... e5 {[%clk 0:02:04.2]} 15. Bc4 {[%clk 0:02:50.6]}
15... Be6 {[%clk 0:02:03.7]} 16. O-O {[%clk 0:02:45.4]} 16... Rac8 {[%clk
0:01:57.5]} 17. h3 {[%clk 0:02:28.1]} 17... f6 {[%clk 0:01:57.5]} 18. Bd3 {[%clk
0:02:24.2]} 18... g6 {[%clk 0:01:54.6]} 19. Rfd1 {[%clk 0:02:23.4]} 19... Bf7
{[%clk 0:01:53.8]} 20. Bb5 {[%clk 0:02:19.9]} 20... Nb8 {[%clk 0:01:46.6]} 21.
Ne4 {[%clk 0:02:16.7]} 21... Rxc1 {[%clk 0:01:45.3]} 22. Rxc1 {[%clk 0:02:11.4]}
22... a6 {[%clk 0:01:45.8]} 23. Bf1 {[%clk 0:02:10.1]} 23... Kg7 {[%clk
0:01:45.3]} 24. Nc5 {[%clk 0:02:02.7]} 24... Rc8 {[%clk 0:01:28.8]} 25. b4
{[%clk 0:02:00.9]} 25... Rc7 {[%clk 0:01:20.8]} 26. Qb2 {[%clk 0:02:00.4]} 26...
Nd7 {[%clk 0:01:18.4]} 27. Nxd7 {[%clk 0:01:53.5]} 27... Qxd7 {[%clk 0:00:54.8]}
28. Nd2 {[%clk 0:01:52.7]} 28... Rxc1 {[%clk 0:00:44.9]} 29. Qxc1 {[%clk
0:01:52.2]} 29... Qc7 {[%clk 0:00:38.6]} 30. Qxc7 {[%clk 0:01:46.1]} 30... Nxc7
{[%clk 0:00:39.5]} 31. g4 {[%clk 0:01:45.1]} 31... Bd5 {[%clk 0:00:37.9]} 32. f4
{[%clk 0:01:44.6]} 32... Kf7 {[%clk 0:00:35.9]} 33. Kf2 {[%clk 0:01:44.3]} 33...
Ke6 {[%clk 0:00:32.6]} 34. h4 {[%clk 0:01:39]} 34... Kd6 {[%clk 0:00:24.6]} 35.
g5 {[%clk 0:01:36.7]} 35... f5 {[%clk 0:00:21.5]} 36. fxe5+ {[%clk 0:01:33.7]}
36... Kxe5 {[%clk 0:00:21.8]} 37. Be2 {[%clk 0:01:34]} 37... Ne6 {[%clk
0:00:21.9]} 38. Nf3+ {[%clk 0:01:33.9]} 38... Kd6 {[%clk 0:00:21.2]} 39. Nd2
{[%clk 0:01:22.4]} 39... f4 {[%clk 0:00:18.6]} 40. Nc4+ {[%clk 0:01:21.4]} 40...
Ke7 {[%clk 0:00:10.4]} 41. Ne5 {[%clk 0:01:18.7]} 41... Kd6 {[%clk 0:00:08.5]}
42. Ng4 {[%clk 0:01:16.2]} 42... fxe3+ {[%clk 0:00:07.6]} 43. Kxe3 {[%clk
0:01:16.2]} 43... Ng7 {[%clk 0:00:08.2]} 44. Bd3 {[%clk 0:01:13.8]} 44... Ke7
{[%clk 0:00:02.5]} 45. Nf6 {[%clk 0:01:13.2]} 45... Be6 {[%clk 0:00:03.2]} 46.
Nxh7 {[%clk 0:01:13]} 46... Bf5 {[%clk 0:00:04]} 47. Nf6 {[%clk 0:01:12.2]}
47... Bxd3 {[%clk 0:00:04.1]} 48. Kxd3 {[%clk 0:01:12.5]} 48... Nf5 {[%clk
0:00:05]} 49. h5 {[%clk 0:01:12.4]} 49... gxh5 {[%clk 0:00:05.9]} 50. Nxh5
{[%clk 0:01:12.5]} 50... Nd6 {[%clk 0:00:06.5]} 51. Nf4 {[%clk 0:01:11.6]} 51...
Nb5 {[%clk 0:00:02.3]} 52. a4 {[%clk 0:01:11.4]} 52... Nc7 {[%clk 0:00:03.2]}
53. Kc4 {[%clk 0:01:11.5]} 53... b6 {[%clk 0:00:02.5]} 54. Nd5+ {[%clk 0:01:11]}
1-0

[Event "*** SCC Grand Prix: Titled Tuesday Blitz"]
[Site "Chess.com"]
[Date "2020.08.25"]
[Round "6"]
[White "bocah_sakit"]
[Black "praveenb2002"]
[Result "1-0"]
[WhiteElo "2633"]
[BlackElo "2742"]
[TimeControl "180+1"]
[EndTime "11:08:24 PDT"]
[Termination "bocah_sakit won by checkmate"]

1. e4 {[%clk 0:02:47.3]} 1... c5 {[%clk 0:02:58.6]} 2. Nf3 {[%clk 0:02:47.2]}
2... d6 {[%clk 0:02:58.4]} 3. d4 {[%clk 0:02:47.6]} 3... cxd4 {[%clk 0:02:58.6]}
4. Nxd4 {[%clk 0:02:48.5]} 4... Nf6 {[%clk 0:02:57.7]} 5. Nc3 {[%clk 0:02:48.9]}
5... Nc6 {[%clk 0:02:58.2]} 6. Bg5 {[%clk 0:02:47.7]} 6... e6 {[%clk 0:02:58.3]}
7. Qd2 {[%clk 0:02:46]} 7... a6 {[%clk 0:02:58.1]} 8. O-O-O {[%clk 0:02:43.8]}
8... Bd7 {[%clk 0:02:58.3]} 9. f3 {[%clk 0:02:43.1]} 9... Be7 {[%clk 0:02:56.3]}
10. h4 {[%clk 0:02:39.8]} 10... b5 {[%clk 0:02:55.3]} 11. Nxc6 {[%clk
0:02:34.7]} 11... Bxc6 {[%clk 0:02:56.2]} 12. Ne2 {[%clk 0:02:35.2]} 12... Rc8
{[%clk 0:02:48.8]} 13. Kb1 {[%clk 0:02:33.6]} 13... Bb7 {[%clk 0:02:41.5]} 14.
Nd4 {[%clk 0:02:31.4]} 14... Qc7 {[%clk 0:02:38.8]} 15. g4 {[%clk 0:02:25.3]}
15... O-O {[%clk 0:02:38.5]} 16. Be3 {[%clk 0:02:22.9]} 16... Nd7 {[%clk
0:02:33.9]} 17. h5 {[%clk 0:02:20.4]} 17... d5 {[%clk 0:02:33.9]} 18. exd5
{[%clk 0:01:54.1]} 18... Bxd5 {[%clk 0:02:34.8]} 19. g5 {[%clk 0:01:49.2]} 19...
Ne5 {[%clk 0:02:24.9]} 20. Be2 {[%clk 0:01:35.7]} 20... Nc4 {[%clk 0:02:00.6]}
21. Bxc4 {[%clk 0:01:34.9]} 21... Qxc4 {[%clk 0:02:01.5]} 22. b3 {[%clk
0:01:27.1]} 22... Qc3 {[%clk 0:02:01.6]} 23. Qf2 {[%clk 0:01:03.4]} 23... Ba3
{[%clk 0:01:46.3]} 24. Bc1 {[%clk 0:01:03.1]} 24... Bxc1 {[%clk 0:01:45.7]} 25.
Rxc1 {[%clk 0:01:04]} 25... a5 {[%clk 0:01:33.7]} 26. Nxb5 {[%clk 0:00:51.4]}
26... Qb4 {[%clk 0:01:33.1]} 27. a4 {[%clk 0:00:51.4]} 27... Rb8 {[%clk
0:01:13.6]} 28. Qe1 {[%clk 0:00:37.6]} 28... Qf4 {[%clk 0:01:08.4]} 29. Qxa5
{[%clk 0:00:30.4]} 29... Rfc8 {[%clk 0:01:02.8]} 30. h6 {[%clk 0:00:28.6]} 30...
g6 {[%clk 0:00:56]} 31. Rhg1 {[%clk 0:00:28.4]} 31... Ra8 {[%clk 0:00:49.1]} 32.
Qb6 {[%clk 0:00:23.7]} 32... Rxa4 {[%clk 0:00:43]} 33. Qd6 {[%clk 0:00:16.9]}
33... Qe3 {[%clk 0:00:12]} 34. bxa4 {[%clk 0:00:11.5]} 34... Ra8 {[%clk
0:00:09.4]} 35. Qa3 {[%clk 0:00:11.3]} 35... Qf4 {[%clk 0:00:07.4]} 36. Qb2
{[%clk 0:00:11.1]} 36... Qxa4 {[%clk 0:00:06.7]} 37. Qg7# {[%clk 0:00:10.8]} 1-0

[Event "*** SCC Grand Prix: Titled Tuesday Blitz"]
[Site "Chess.com"]
[Date "2020.08.25"]
[Round "6"]
[White "dforcen"]
[Black "shnitez"]
[Result "0-1"]
[WhiteElo "2612"]
[BlackElo "2469"]
[TimeControl "180+1"]
[EndTime "11:08:25 PDT"]
[Termination "shnitez won by resignation"]

1. c4 {[%clk 0:03:00.9]} 1... e5 {[%clk 0:02:54.6]} 2. Nc3 {[%clk 0:03:00.3]}
2... Nc6 {[%clk 0:02:54.7]} 3. Nf3 {[%clk 0:02:59.9]} 3... Nf6 {[%clk
0:02:53.1]} 4. e4 {[%clk 0:02:59.3]} 4... b6 {[%clk 0:02:39.6]} 5. g3 {[%clk
0:02:50.1]} 5... Bb4 {[%clk 0:02:27.7]} 6. d3 {[%clk 0:02:48]} 6... O-O {[%clk
0:02:25.6]} 7. a3 {[%clk 0:02:47.5]} 7... Bxc3+ {[%clk 0:02:18.2]} 8. bxc3
{[%clk 0:02:48.4]} 8... d6 {[%clk 0:02:16.8]} 9. Bg2 {[%clk 0:02:48.5]} 9... Nd7
{[%clk 0:02:04]} 10. O-O {[%clk 0:02:42.5]} 10... Bb7 {[%clk 0:01:54.6]} 11. Nh4
{[%clk 0:02:40]} 11... a6 {[%clk 0:01:22]} 12. Nf5 {[%clk 0:02:36.9]} 12... Kh8
{[%clk 0:01:12.7]} 13. f4 {[%clk 0:02:33.2]} 13... Ne7 {[%clk 0:01:04.5]} 14.
Ne3 {[%clk 0:02:16.9]} 14... Nc5 {[%clk 0:00:42.2]} 15. Rb1 {[%clk 0:02:13.2]}
15... Qd7 {[%clk 0:00:37.2]} 16. Nd5 {[%clk 0:02:10.3]} 16... Nxd5 {[%clk
0:00:32.2]} 17. cxd5 {[%clk 0:02:09.8]} 17... b5 {[%clk 0:00:25.2]} 18. d4
{[%clk 0:02:07.7]} 18... Na4 {[%clk 0:00:22.9]} 19. Bd2 {[%clk 0:01:56.9]} 19...
exd4 {[%clk 0:00:19.7]} 20. cxd4 {[%clk 0:01:56.8]} 20... c6 {[%clk 0:00:20.3]}
21. dxc6 {[%clk 0:01:55.9]} 21... Bxc6 {[%clk 0:00:21.2]} 22. d5 {[%clk
0:01:50.7]} 22... Bb7 {[%clk 0:00:21.2]} 23. Qb3 {[%clk 0:01:50]} 23... Rac8
{[%clk 0:00:20.5]} 24. Rbc1 {[%clk 0:01:49.5]} 24... f6 {[%clk 0:00:19.3]} 25.
Qb4 {[%clk 0:01:43.2]} 25... Rc5 {[%clk 0:00:17]} 26. Be3 {[%clk 0:01:42.2]}
26... Rxc1 {[%clk 0:00:14.1]} 27. Rxc1 {[%clk 0:01:41.6]} 27... Rc8 {[%clk
0:00:15]} 28. Rxc8+ {[%clk 0:01:39.1]} 28... Bxc8 {[%clk 0:00:15.9]} 29. h4
{[%clk 0:01:37.9]} 29... Qc7 {[%clk 0:00:14.9]} 30. Kh2 {[%clk 0:01:37.2]} 30...
h6 {[%clk 0:00:14.3]} 31. f5 {[%clk 0:01:35.7]} 31... Bd7 {[%clk 0:00:13.9]} 32.
Bf4 {[%clk 0:01:35]} 32... Nc5 {[%clk 0:00:12.8]} 33. g4 {[%clk 0:01:29.8]}
33... a5 {[%clk 0:00:12.7]} 34. Qd4 {[%clk 0:01:28.3]} 34... Be8 {[%clk
0:00:11.1]} 35. g5 {[%clk 0:01:27.5]} 35... hxg5 {[%clk 0:00:11.5]} 36. hxg5
{[%clk 0:01:28.4]} 36... Qe7 {[%clk 0:00:09.4]} 37. gxf6 {[%clk 0:01:26.7]}
37... gxf6 {[%clk 0:00:10.2]} 38. Bf3 {[%clk 0:01:24.5]} 38... Kg8 {[%clk
0:00:08.9]} 39. Kg3 {[%clk 0:01:23.5]} 39... Kg7 {[%clk 0:00:05.3]} 40. Kf2
{[%clk 0:01:20.1]} 40... Kf8 {[%clk 0:00:04.2]} 41. Ke3 {[%clk 0:01:18.8]} 41...
Bf7 {[%clk 0:00:03.6]} 42. Qb2 {[%clk 0:01:17.1]} 42... Be8 {[%clk 0:00:03.7]}
43. Bh6+ {[%clk 0:01:15.9]} 43... Kg8 {[%clk 0:00:03.2]} 44. Qg2+ {[%clk
0:01:16]} 44... Kh7 {[%clk 0:00:03.6]} 45. Bf4 {[%clk 0:01:16]} 45... Kh8 {[%clk
0:00:02.3]} 46. Qg4 {[%clk 0:01:14.7]} 46... b4 {[%clk 0:00:01.7]} 47. axb4
{[%clk 0:01:13.7]} 47... axb4 {[%clk 0:00:02.6]} 48. Qh4+ {[%clk 0:01:13.8]}
48... Kg8 {[%clk 0:00:03.1]} 49. Qg3+ {[%clk 0:01:14.4]} 49... Qg7 {[%clk
0:00:02.1]} 50. Bxd6 {[%clk 0:01:15.3]} 50... Qxg3 {[%clk 0:00:02]} 51. Bxg3
{[%clk 0:01:16.1]} 51... b3 {[%clk 0:00:02.8]} 52. Kd2 {[%clk 0:01:13.2]} 52...
Na4 {[%clk 0:00:03.1]} 53. Bd6 {[%clk 0:01:08.1]} 53... Bb5 {[%clk 0:00:02.7]}
54. Be7 {[%clk 0:01:06]} 54... b2 {[%clk 0:00:02.2]} 55. Bxf6 {[%clk 0:01:04.3]}
55... b1=Q {[%clk 0:00:02]} 56. Ke3 {[%clk 0:01:04.6]} 56... Qc1+ {[%clk
0:00:02]} 57. Kf2 {[%clk 0:01:03.6]} 57... Nc3 {[%clk 0:00:02.9]} 58. Bxc3
{[%clk 0:01:00.8]} 58... Qxc3 {[%clk 0:00:02.6]} 59. f6 {[%clk 0:01:01.2]} 59...
Qd4+ {[%clk 0:00:02.9]} 0-1